bitfinex/quotes_SOLUSD_20250514
["timestamp","ask_amount","ask_price","bid_price","bid_amount"]
[1747232420295,138.0,176.77,176.71,29.40458622]
[1747232420531,138.0,176.77,176.69,31.6051]
[1747232420532,29.40458622,176.76,176.69,31.6051]
[1747232420709,29.40458622,176.76,176.7,29.40458622]
[1747232420710,5.65770862,176.75,176.7,29.40458622]
[1747232420921,29.40458622,176.72,176.65,6.0192]
[1747232421082,29.40458622,176.69,176.63,1.5781]
[1747232421280,167.40458622,176.68,176.63,30.98268622]
[1747232421507,167.40458622,176.67,176.63,1.5781]
[1747232421712,138.0,176.66,176.63,1.5781]
[1747232421885,29.40458622,176.65,176.6,35.74258622]
[1747232422090,29.40458622,176.64,176.6,6.338]
[1747232422314,138.0,176.63,176.57,1.556]
[1747232422613,5.66219353,176.61,176.56,8.88688896]
[1747232423193,143.66191862,176.62,176.56,8.88688896]
[1747232423382,167.40458622,176.62,176.57,29.40458622]
[1747232423584,143.6618956,176.62,176.56,8.88688896]
[1747232423825,138.0,176.62,176.57,29.40458622]
[1747232424131,138.0,176.62,176.61,29.40458622]
[1747232424423,29.40458622,176.71,176.61,29.40458622]
[1747232424619,29.40458622,176.7,176.58,29.40458622]
[1747232424820,5.65962986,176.69,176.59,5.66283481]
[1747232424981,29.40458622,176.72,176.67,29.40458622]
[1747232425302,29.40458622,176.72,176.62,1.5064]
[1747232425533,29.40458622,176.68,176.62,1.5064]
[1747232425817,29.40458622,176.66,176.62,1.5064]
[1747232426127,29.40458622,176.65,176.57,31.16]
[1747232426274,0.28432314,176.69,176.57,31.16]
[1747232426478,29.40458622,176.63,176.57,31.16]
[1747232426710,5.66219353,176.61,176.57,31.16]
[1747232426894,29.40458622,176.6,176.57,31.16]
[1747232427272,29.40458622,176.6,176.56,8.88688896]
[1747232427479,35.06677975,176.61,176.56,38.29147518]
[1747232427805,29.40458622,176.62,176.57,29.40458622]
[1747232428115,5.6609114,176.65,176.58,29.40458622]
[1747232428302,29.40458622,176.64,176.56,8.88688896]
[1747232428807,5.66117128,176.65,176.56,14.55052685]
[1747232428978,29.40458622,176.67,176.62,29.40458622]
[1747232429180,29.40458622,176.67,176.56,14.55052685]
[1747232429380,143.65995019,176.68,176.64,29.40458622]
[1747232429685,143.65995019,176.68,176.63,29.40458622]
[1747232429899,173.06453641,176.68,176.58,29.40458622]
[1747232430210,173.06453641,176.68,176.63,29.40458622]
[1747232430928,138.0,176.68,176.64,29.40458622]
[1747232431079,138.0,176.68,176.59,45.37708547]
[1747232431080,138.0,176.68,176.66,29.40458622]
[1747232431907,5.65857596,176.73,176.67,29.40458622]
[1747232432107,5.65857596,176.73,176.71,29.40458622]
[1747232432307,5.65809472,176.74,176.71,29.40458622]
[1747232432810,5.65809472,176.74,176.67,35.91448622]
[1747232432811,49.20775279,176.74,176.67,6.5099]
[1747232433020,138.0,176.73,176.65,29.40458622]
[1747232433220,167.40458622,176.72,176.67,29.40458622]
[1747232433421,29.40458622,176.71,176.66,29.40458622]
[1747232433641,138.0,176.7,176.66,29.40458622]
[1747232434304,35.06421608,176.69,176.64,29.40458622]
[1747232434509,138.0,176.68,176.64,29.40458622]
[1747232434918,138.0,176.68,176.67,29.40458622]
[1747232435122,138.0,176.68,176.66,29.40458622]
[1747232435644,138.0,176.68,176.67,29.40458622]
[1747232436142,138.0,176.73,176.67,58.80917244]
[1747232436356,43.5444268,176.81,176.72,29.40458622]
[1747232436652,5.65610859,176.8,176.78,29.40458622]
[1747232437060,5.65514901,176.83,176.79,29.40458622]
[1747232437219,5.65418975,176.86,176.76,60.32458622]
[1747232437414,49.19425035,176.86,176.81,29.40458622]
[1747232437743,5.65418975,176.86,176.83,29.40458622]
[1747232437924,5.65418975,176.86,176.76,60.32458622]
[1747232437925,5.65355042,176.88,176.85,29.40458622]
[1747232438130,5.65259171,176.91,176.87,29.40458622]
[1747232438325,19.78071662,176.94,176.85,29.40458622]
[1747232438523,19.78071662,176.94,176.9,29.40458622]
[1747232438721,19.78071662,176.94,176.92,29.40458622]
[1747232438722,5.65163332,176.94,176.92,29.40458622]
[1747232438939,5.65163332,176.94,176.85,29.40458622]
[1747232439140,5.65163332,176.94,176.92,29.40458622]
[1747232439318,5.65163332,176.94,176.85,29.40458622]
[1747232439319,5.65163332,176.94,176.93,29.40458622]
[1747232440437,29.40458622,176.94,176.84,7.6059]
[1747232440631,0.14216157,176.96,176.9,29.40458622]
[1747232440837,29.40458622,176.95,176.9,29.40458622]
[1747232441341,29.40458622,176.94,176.9,29.40458622]
[1747232441515,29.40458622,176.94,176.89,29.40458622]
[1747232441715,29.40458622,176.94,176.9,29.40458622]
[1747232442345,5.65195274,176.93,176.9,29.40458622]
[1747232442649,5.65195274,176.93,176.91,29.40458622]
[1747232443114,49.18642083,176.93,176.88,29.40458622]
[1747232443314,19.78183461,176.93,176.89,29.40458622]
[1747232443552,49.18642083,176.93,176.84,7.6059]
[1747232443719,29.40458622,176.92,176.84,7.6059]
[1747232443920,29.40458622,176.9,176.86,29.40458622]
[1747232444121,29.40458622,176.91,176.86,29.40458622]
[1747232444339,5.65291124,176.9,176.86,29.40458622]
[1747232444651,167.40458622,176.89,176.84,37.01048622]
[1747232444941,138.0,176.88,176.84,37.01048622]
[1747232445132,167.40458622,176.87,176.83,29.40458622]
[1747232445343,167.40458622,176.87,176.82,29.40458622]
[1747232445515,29.40458622,176.86,176.82,29.40458622]
[1747232445712,138.0,176.85,176.82,29.40458622]
[1747232446035,138.0,176.84,176.82,29.40458622]
[1747232446450,29.40458622,176.84,176.79,8.209]
[1747232446657,0.14216157,176.86,176.73,31.02]
[1747232446658,0.28432314,176.86,176.81,29.40458622]
[1747232446949,29.40458622,176.84,176.79,29.40458622]
[1747232447112,26.0,176.87,176.81,29.40458622]
[1747232447317,29.40458622,176.86,176.81,29.40458622]
[1747232447516,29.40458622,176.86,176.82,29.40458622]
[1747232447751,29.40458622,176.86,176.81,29.40458622]
[1747232448252,26.0,176.79,176.69,6.484]
[1747232448417,5.6589893,176.71,176.66,1.5966]
[1747232448819,35.06357552,176.71,176.66,31.00118622]
[1747232449035,29.40458622,176.7,176.66,1.5966]
[1747232449477,29.40458622,176.68,176.6,1.6435]
[1747232449617,29.40458622,176.67,176.6,1.6435]
[1747232449819,26.28432314,176.7,176.61,29.40458622]
[1747232450055,29.40458622,176.66,176.61,29.40458622]
[1747232450418,35.0658181,176.64,176.6,1.6435]
[1747232450616,5.66123188,176.64,176.58,6.1576]
[1747232450861,19.81431159,176.64,176.59,29.40458622]
[1747232451026,29.40458622,176.61,176.55,33.54]
[1747232451428,26.0,176.61,176.53,1.6526]
[1747232451637,29.40458622,176.6,176.55,29.40458622]
[1747232451820,29.40458622,176.61,176.53,1.6526]
[1747232452026,29.40458622,176.59,176.53,31.05718622]
[1747232452257,29.40458622,176.57,176.53,1.6526]
[1747232452740,5.66251415,176.6,176.53,1.6526]
[1747232452933,5.66251415,176.6,176.52,69.83858622]
[1747232452934,0.28432314,176.59,176.52,40.434]
[1747232453117,29.40458622,176.57,176.52,40.434]
[1747232453318,0.28432314,176.59,176.52,40.434]
[1747232453517,29.40458622,176.57,176.52,40.434]
[1747232453750,0.14216157,176.59,176.53,29.40458622]
[1747232453933,5.66251415,176.6,176.52,40.434]
[1747232454128,29.40458622,176.57,176.52,34.375]
[1747232454345,19.81879954,176.6,176.56,8.60268896]
[1747232454546,5.66347624,176.57,176.56,8.60268896]
[1747232454884,35.06806246,176.57,176.56,8.60268896]
[1747232456983,5.66347624,176.57,176.56,8.60268896]
[1747232457479,61.21022403,176.57,176.56,8.60268896]
[1747232457796,31.66347624,176.57,176.56,8.60268896]
[1747232457949,5.66347624,176.57,176.56,8.60268896]
[1747232459651,29.40458622,176.63,176.58,29.40458622]
[1747232459851,5.66059096,176.66,176.6,29.40458622]
[1747232460068,29.40458622,176.64,176.59,29.40458622]
[1747232460388,29.40458622,176.62,176.56,8.60268896]
[1747232460566,29.40458622,176.61,176.56,8.60268896]
[1747232460875,45.81206837,176.66,176.56,8.60268896]
[1747232460876,29.40458622,176.64,176.56,8.60268896]
[1747232461172,29.40458622,176.67,176.62,29.40458622]
[1747232461377,35.06357552,176.71,176.66,29.40458622]
[1747232461553,29.40458622,176.74,176.69,29.40458622]
[1747232461754,28.28340529,176.79,176.73,29.40458622]
[1747232461755,29.40458622,176.79,176.73,29.40458622]
[1747232461961,26.0,176.77,176.67,6.513]
[1747232462186,31.65610859,176.8,176.67,6.513]
[1747232462187,29.40458622,176.72,176.67,6.513]
[1747232462574,26.0,176.77,176.68,29.40458622]
[1747232462799,29.40458622,176.71,176.67,6.513]
[1747232463096,26.0,176.75,176.67,35.91758622]
[1747232463259,29.40458622,176.72,176.67,35.91758622]
[1747232463460,29.40458622,176.72,176.67,6.513]
[1747232463660,26.0,176.75,176.6,211.96]
[1747232463661,29.40458622,176.68,176.6,211.96]
[1747232463862,26.0,176.73,176.67,29.40458622]
[1747232464063,29.40458622,176.73,176.68,29.40458622]
[1747232464475,26.0,176.75,176.69,29.40458622]
[1747232464675,29.40458622,176.77,176.72,29.40458622]
[1747232464876,29.40458622,176.78,176.73,29.40458622]
[1747232465085,19.79749985,176.79,176.74,29.40458622]
[1747232465273,19.79749985,176.79,176.66,36.86]
[1747232465469,19.79749985,176.79,176.73,29.40458622]
[1747232465670,29.40458622,176.78,176.73,29.40458622]
[1747232465868,74.0796425,176.79,176.61,44.64964886]
[1747232466068,74.0796425,176.79,176.7,29.40458622]
[1747232466369,74.0796425,176.79,176.71,29.40458622]
[1747232466370,29.40458622,176.76,176.71,29.40458622]
[1747232466578,29.40458622,176.75,176.7,29.40458622]
[1747232466784,49.20768681,176.74,176.69,29.40458622]
[1747232466986,29.40458622,176.73,176.67,29.40458622]
[1747232467294,29.40458622,176.72,176.67,29.40458622]
[1747232467462,29.40458622,176.73,176.62,37.2]
[1747232467664,19.80310059,176.74,176.66,29.40458622]
[1747232467868,29.40458622,176.71,176.66,29.40458622]
[1747232468078,48.0932443,176.74,176.62,37.2]
[1747232468285,29.40458622,176.72,176.67,29.40458622]
[1747232468484,29.40458622,176.72,176.62,37.2]
[1747232468485,29.40458622,176.69,176.62,37.2]
[1747232468659,45.80646256,176.71,176.6,211.96]
[1747232468875,29.40458622,176.68,176.63,29.40458622]
[1747232469059,74.10140908,176.71,176.64,29.40458622]
[1747232469259,29.40458622,176.7,176.65,29.40458622]
[1747232469480,5.6589893,176.71,176.67,29.40458622]
[1747232469672,5.6589893,176.71,176.7,29.40458622]
[1747232470115,5.6589893,176.71,176.69,29.40458622]
[1747232470629,5.6589893,176.71,176.68,29.40458622]
[1747232470815,19.80534178,176.72,176.68,29.40458622]
[1747232470982,29.40458622,176.71,176.6,211.96]
[1747232471185,29.40458622,176.7,176.65,29.40458622]
[1747232471400,29.40458622,176.69,176.6,211.96]
[1747232471710,29.40458622,176.71,176.66,29.40458622]
[1747232471909,19.80534178,176.72,176.6,217.62248931]
[1747232471910,5.65866908,176.72,176.69,29.40458622]
[1747232472091,5.65866908,176.72,176.7,29.40458622]
[1747232472411,33.05064595,176.88,176.71,29.40458622]
[1747232472412,5.6567485,176.78,176.71,29.40458622]
[1747232472580,5.6567485,176.78,176.75,29.40458622]
[1747232472906,5.6567485,176.78,176.73,29.40458622]
[1747232473078,19.79861975,176.78,176.7,1.5532]
[1747232473273,19.79861975,176.78,176.72,29.40458622]
[1747232473478,19.79861975,176.78,176.7,1.5532]
[1747232473479,29.40458622,176.76,176.7,1.5532]
[1747232473785,29.40458622,176.76,176.71,29.40458622]
[1747232474107,29.40458622,176.75,176.7,1.5532]
[1747232474311,29.40458622,176.74,176.7,1.5532]
[1747232474495,138.0,176.73,176.7,1.5532]
[1747232474687,5.65866908,176.72,176.7,1.5532]
[1747232474892,5.65866908,176.72,176.7,30.95778622]
[1747232475199,5.65866908,176.72,176.7,1.5532]
[1747232475402,138.0,176.73,176.71,29.40458622]
[1747232475598,138.0,176.73,176.72,29.40458622]
[1747232475978,138.0,176.73,176.72,35.59008622]
[1747232476179,131.3334,176.73,176.72,35.59008622]
[1747232476591,131.3334,176.73,176.72,6.1855]
[1747232477002,136.99174889,176.73,176.72,6.1855]
[1747232477409,131.3334,176.73,176.7,30.95778622]
[1747232477615,136.99185024,176.73,176.7,1.5532]
[1747232477827,136.99185024,176.73,176.7,30.95778622]
[1747232478022,136.99185024,176.73,176.7,1.5532]
[1747232478210,5.65845024,176.73,176.7,1.5532]
[1747232478391,5.6567485,176.78,176.7,1.5532]
[1747232478594,29.40458622,176.71,176.66,72.73568622]
[1747232478821,5.65925808,176.71,176.67,29.40458622]
[1747232479017,5.65925808,176.71,176.66,43.3311]
[1747232479540,5.65802874,176.74,176.66,48.99156088]
[1747232480089,35.03167143,176.74,176.66,43.3311]
[1747232480296,5.65802874,176.74,176.66,43.3311]
[1747232481223,29.37364269,176.76,176.66,48.99163376]
[1747232481397,29.37364269,176.75,176.66,48.99163376]
[1747232481602,29.37364269,176.74,176.66,43.3311]
[1747232481917,29.37364269,176.75,176.66,43.3311]
[1747232482415,19.79861975,176.78,176.66,43.3311]
[1747232482626,19.79861975,176.78,176.67,18.64964886]
[1747232482627,49.17226244,176.78,176.67,18.64964886]
[1747232482801,5.6567485,176.78,176.7,5.65930956]
[1747232482998,5.65578869,176.81,176.7,5.65930956]
[1747232483218,19.79526043,176.81,176.68,36.7]
[1747232483425,45.79526043,176.81,176.68,36.7]
[1747232484331,5.65514901,176.83,176.71,18.64964886]
[1747232484500,131.3334,176.87,176.75,6.5696]
[1747232484501,5.65476968,176.85,176.75,6.5696]
[1747232484701,136.98762322,176.86,176.76,36.68]
[1747232484942,136.98762322,176.86,176.78,5.6567485]
[1747232485105,29.37364269,176.85,176.77,24.30667502]
[1747232485305,29.37364269,176.85,176.77,5.65702616]
[1747232485607,166.36126591,176.86,176.77,5.65702616]
[1747232486414,131.3334,176.86,176.8,26.0]
[1747232486616,129.6668,176.95,176.81,44.64964886]
[1747232487006,29.37364269,176.87,176.78,38.2861]
[1747232487213,29.37364269,176.86,176.78,1.5861]
[1747232487520,29.37364269,176.87,176.78,1.5861]
[1747232487730,29.37364269,176.85,176.78,1.5861]
[1747232488225,29.37364269,176.83,176.78,1.5861]
[1747232488408,26.14216157,176.89,176.78,1.5861]
[1747232488409,5.65482922,176.84,176.78,1.5861]
[1747232489324,35.02847191,176.84,176.78,1.5861]
[1747232489507,5.65482922,176.84,176.78,1.5861]
[1747232489925,5.65418975,176.86,176.78,7.24279169]
[1747232490130,35.02783244,176.86,176.78,1.5861]
[1747232490602,29.37364269,176.85,176.78,1.5861]
[1747232491504,5.65418975,176.86,176.78,1.5861]
[1747232491902,129.6668,176.87,176.78,7.24277582]
[1747232492098,129.6668,176.87,176.79,0.39855073]
[1747232492410,129.6668,176.87,176.79,19.04819959]
[1747232492832,135.32075736,176.87,176.79,19.04819959]
[1747232493709,29.37364269,176.85,176.79,0.39855073]
[1747232493912,29.37364269,176.81,176.79,0.39855073]
[1747232494109,159.04044269,176.8,176.79,0.39855073]
[1747232494320,29.37364269,176.8,176.79,0.39855073]
[1747232494639,61.02975128,176.8,176.79,0.39855073]
[1747232495334,31.65610859,176.8,176.79,0.39855073]
[1747232495546,61.02975128,176.8,176.79,0.39855073]
[1747232495744,61.31407442,176.8,176.79,0.39855073]
[1747232496252,61.17191285,176.8,176.79,0.39855073]
[1747232496546,5.65610859,176.8,176.79,0.39855073]
[1747232497051,35.02975128,176.8,176.79,0.39855073]
[1747232499613,5.65610859,176.8,176.79,0.39855073]
[1747232499814,5.65546883,176.82,176.79,0.39855073]
[1747232500852,29.37364269,176.85,176.79,0.39855073]
[1747232501228,33.91955313,176.89,176.79,0.39855073]
[1747232501229,29.37364269,176.86,176.79,1.92415073]
[1747232501423,29.37364269,176.88,176.79,1.92415073]
[1747232501958,19.78630787,176.89,176.8,6.1108]
[1747232502259,49.15995056,176.89,176.8,6.1108]
[1747232502443,49.15995056,176.89,176.81,0.39855073]
[1747232502742,19.78630787,176.89,176.81,0.39855073]
[1747232502945,49.15995056,176.89,176.81,0.39855073]
[1747232503156,29.37364269,176.88,176.81,0.39855073]
[1747232503326,19.78630787,176.89,176.81,0.39855073]
[1747232503643,29.37364269,176.85,176.81,0.39855073]
[1747232503838,138.0,176.84,176.81,0.39855073]
[1747232504423,29.37364269,176.83,176.81,0.39855073]
[1747232504634,167.37364269,176.82,176.81,0.39855073]
[1747232505037,143.65546883,176.82,176.81,0.39855073]
[1747232507036,138.0,176.82,176.81,0.39855073]
[1747232507351,138.0,176.88,176.81,0.39855073]
[1747232507558,138.0,176.88,176.82,20.27934886]
[1747232507713,5.65184019,176.94,176.84,18.64964886]
[1747232508362,49.15456618,176.94,176.85,0.39855073]
[1747232508518,19.78092349,176.94,176.85,0.39855073]
[1747232509123,5.65184019,176.94,176.85,0.39855073]
[1747232509461,5.65184019,176.94,176.85,6.05298664]
[1747232509619,138.0,176.95,176.85,6.05298664]
[1747232509620,138.0,176.95,176.86,18.64964886]
[1747232509937,138.0,176.95,176.86,44.64964886]
[1747232510141,138.0,176.95,176.87,0.39855073]
[1747232510446,138.0,176.95,176.88,35.82]
[1747232511019,138.0,176.95,176.89,0.39855073]
[1747232511218,138.0,176.95,176.9,36.06]
[1747232511642,143.65131589,176.95,176.9,36.06]
[1747232511846,143.65131589,176.95,176.88,35.82]
[1747232512154,173.02495858,176.95,176.88,35.82]
[1747232512454,143.65131589,176.95,176.88,35.82]
[1747232512619,143.65131589,176.95,176.88,41.47354293]
[1747232512620,138.0,176.95,176.88,41.47354293]
[1747232513019,138.0,176.95,176.88,77.23354293]
[1747232513329,138.0,176.95,176.9,8.0791]
[1747232513529,138.0,176.95,176.91,18.64964886]
[1747232513919,5.65006236,176.99,176.91,18.64964886]
[1747232514245,5.6490792,177.02,176.91,18.64964886]
[1747232514461,143.6490792,177.02,176.91,18.64964886]
[1747232514682,157.7717772,177.02,176.9,8.0791]
[1747232515034,29.37364269,177.0,176.9,8.0791]
[1747232515425,35.02367941,176.99,176.9,13.73196295]
[1747232515631,138.0,176.98,176.9,13.73196295]
[1747232515932,138.0,176.97,176.9,8.0791]
[1747232516135,29.37364269,176.96,176.9,8.0791]
[1747232517147,138.0,176.97,176.9,8.0791]
[1747232517340,29.37364269,176.95,176.9,8.0791]
[1747232517549,5.65163332,176.94,176.9,8.0791]
[1747232518854,5.65099457,176.96,176.9,8.0791]
[1747232519237,29.37364269,176.94,176.9,8.0791]
[1747232519424,35.02463726,176.96,176.9,8.0791]
[1747232519849,29.37364269,176.94,176.9,8.0791]
[1747232520253,19.778481,176.96,176.9,8.0791]
[1747232520440,29.37364269,176.95,176.9,8.0791]
[1747232520834,35.02463726,176.96,176.9,8.0791]
[1747232521079,5.65071356,176.97,176.9,8.0791]
[1747232521387,29.37364269,176.95,176.9,8.0791]
[1747232521541,29.37364269,176.91,176.85,8.1217]
[1747232521867,29.37364269,176.87,176.85,8.1217]
[1747232522031,29.37364269,176.87,176.8,6.6174]
[1747232522230,138.0,176.86,176.8,6.6174]
[1747232522461,29.37364269,176.85,176.8,6.6174]
[1747232522635,29.37364269,176.81,176.75,6.4417]
[1747232522953,29.37364269,176.78,176.75,6.4417]
[1747232523149,29.37364269,176.79,176.75,6.4417]
[1747232523355,29.37364269,176.85,176.75,6.4417]
[1747232523562,29.37364269,176.8,176.75,6.4417]
[1747232523759,26.0,176.82,176.75,6.4417]
[1747232523968,29.37364269,176.8,176.75,6.4417]
[1747232524131,35.02943138,176.81,176.75,6.4417]
[1747232524346,29.37364269,176.79,176.75,6.4417]
[1747232524553,29.37364269,176.79,176.73,1.5147]
[1747232524554,29.37364269,176.76,176.73,1.5147]
[1747232524886,29.37364269,176.74,176.7,42.3782]
[1747232525087,29.37364269,176.72,176.7,6.5782]
[1747232525385,29.37364269,176.74,176.7,6.5782]
[1747232525761,5.6589893,176.71,176.68,1.5573]
[1747232526049,29.37364269,176.69,176.65,6.5782]
[1747232526270,29.37364269,176.68,176.62,1.5606]
[1747232526570,5.6589893,176.71,176.56,8.60268896]
[1747232526571,29.37364269,176.67,176.56,8.60268896]
[1747232526771,26.0,176.64,176.56,8.60268896]
[1747232527068,0.28432314,176.65,176.56,8.60268896]
[1747232527448,0.28432314,176.69,176.56,8.60268896]
[1747232527654,0.28432314,176.69,176.56,14.26644545]
[1747232527846,5.65954748,176.7,176.57,31.66347436]
[1747232528048,35.03319017,176.7,176.58,18.64964886]
[1747232528276,5.65891086,176.72,176.6,44.64964886]
[1747232528489,24.30639736,176.78,176.66,6.6321]
[1747232528780,5.6567485,176.78,176.69,26.0]
[1747232529085,19.79414092,176.82,176.7,18.64964886]
[1747232529244,19.79414092,176.82,176.69,66.18]
[1747232529445,29.37364269,176.78,176.7,18.64964886]
[1747232529651,29.37364269,176.79,176.7,18.64964886]
[1747232529850,5.6567485,176.78,176.7,18.64964886]
[1747232530151,19.79526043,176.81,176.7,18.64964886]
[1747232530376,29.37364269,176.76,176.68,40.18]
[1747232530579,29.37364269,176.74,176.68,40.18]
[1747232530879,0.28432314,176.8,176.68,40.18]
[1747232531075,19.79526043,176.81,176.69,18.64964886]
[1747232531284,5.65578869,176.81,176.69,44.64964886]
[1747232531489,5.65387007,176.87,176.73,20.15184886]
[1747232531652,29.37364269,176.89,176.78,26.0]
[1747232531847,5.65355042,176.88,176.79,24.30597316]
[1747232532054,5.65227221,176.92,176.82,26.0]
[1747232532353,211.7,177.0,176.82,26.0]
[1747232532354,19.77570021,176.99,176.82,26.0]
[1747232532570,19.77570021,176.99,176.83,18.64964886]
[1747232532857,26.0,176.98,176.83,18.64964886]
[1747232533361,0.28432314,176.98,176.86,26.0]
[1747232533566,5.65067525,176.97,176.87,20.20224886]
[1747232533757,5.65067525,176.97,176.87,61.66224886]
[1747232533954,29.37364269,176.95,176.87,1.5526]
[1747232534268,29.37364269,176.92,176.81,18.64964886]
[1747232534450,29.37364269,176.91,176.81,18.64964886]
[1747232534654,26.0,176.93,176.81,18.64964886]
[1747232534853,29.37364269,176.89,176.79,1.5526]
[1747232535048,29.37364269,176.87,176.79,1.5526]
[1747232535253,29.37364269,176.85,176.79,1.5526]
[1747232535455,19.78742649,176.88,176.79,1.5526]
[1747232535678,29.37364269,176.87,176.79,1.5526]
[1747232535876,48.05517863,176.88,176.79,1.5526]
[1747232536081,19.78742649,176.88,176.79,1.5526]
[1747232536468,5.65355042,176.88,176.8,18.64964886]
[1747232536997,19.78742649,176.88,176.79,1.5526]
[1747232537183,29.37364269,176.84,176.79,1.5526]
[1747232537384,0.28432314,176.87,176.79,1.5526]
[1747232537565,5.65514901,176.83,176.79,1.5526]
[1747232537765,19.79302154,176.83,176.77,47.5438]
[1747232537967,49.16666423,176.83,176.77,6.2238]
[1747232538166,19.79302154,176.83,176.77,6.2238]
[1747232538465,5.65514901,176.83,176.77,6.2238]
[1747232538672,19.79302154,176.83,176.77,6.2238]
[1747232539177,5.65514901,176.83,176.77,6.2238]
[1747232539495,5.65387007,176.87,176.77,37.88073966]
[1747232539665,5.65387007,176.87,176.86,29.32278391]
[1747232540587,5.65259171,176.91,176.86,29.32278391]
[1747232540893,49.1068549,176.91,176.86,29.32278391]
[1747232541068,29.32278391,176.87,176.77,6.2238]
[1747232541276,29.32278391,176.84,176.77,6.2238]
[1747232541578,49.11916399,176.8,176.74,41.08]
[1747232541788,5.65610859,176.8,176.78,29.32278391]
[1747232542088,5.65610859,176.8,176.74,41.08]
[1747232542486,19.79638008,176.8,176.75,29.32278391]
[1747232542657,5.65514901,176.83,176.74,41.08]
[1747232542862,19.79302154,176.83,176.79,29.32278391]
[1747232543277,19.79302154,176.83,176.8,29.32278391]
[1747232543678,5.65482922,176.84,176.82,29.32278391]
[1747232543879,5.65482922,176.84,176.77,18.64964886]
[1747232544090,34.97761313,176.84,176.79,29.32278391]
[1747232544492,26.0,176.83,176.72,1.524]
[1747232544794,26.0,176.83,176.75,29.32278391]
[1747232544795,29.32278391,176.8,176.75,29.32278391]
[1747232545012,29.32278391,176.79,176.72,1.524]
[1747232545304,29.32278391,176.77,176.66,18.64964886]
[1747232545502,29.32278391,176.75,176.65,1.5474]
[1747232545791,29.32278391,176.72,176.67,29.32278391]
[1747232546208,0.14216157,176.72,176.65,1.5474]
[1747232546498,26.0,176.7,176.64,29.32278391]
[1747232546789,26.0,176.7,176.63,6.2124]
[1747232547010,26.0,176.7,176.65,29.32278391]
[1747232547165,138.0,176.69,176.66,29.32278391]
[1747232547368,138.0,176.69,176.68,29.32278391]
[1747232547821,138.0,176.69,176.63,6.2124]
[1747232548098,138.0,176.69,176.68,29.32278391]
[1747232548789,138.0,176.76,176.68,47.97243277]
[1747232548974,138.0,176.76,176.74,29.32278391]
[1747232549182,138.0,176.76,176.68,18.64964886]
[1747232549567,172.98021261,176.76,176.67,41.28]
[1747232549870,138.0,176.76,176.68,18.64964886]
[1747232550195,143.65739888,176.76,176.73,29.32278391]
[1747232550366,143.65739888,176.76,176.67,34.98286635]
[1747232550565,138.0,176.76,176.73,29.32278391]
[1747232550767,138.0,176.76,176.74,29.32278391]
[1747232551004,138.0,176.76,176.75,29.32278391]
[1747232551304,138.0,176.76,176.69,18.64964886]
[1747232551821,138.0,176.76,176.75,29.32278391]
[1747232552318,0.28432314,176.84,176.75,29.32278391]
[1747232552319,138.0,176.82,176.75,29.32278391]
[1747232552619,138.0,176.82,176.81,29.32278391]
[1747232552791,138.0,176.82,176.76,29.32278391]
[1747232552995,138.0,176.82,176.81,29.32278391]
[1747232553194,138.0,176.89,176.81,29.32278391]
[1747232553418,138.0,176.89,176.87,29.32278391]
[1747232553918,138.0,176.97,176.88,29.32278391]
[1747232554129,143.65099457,176.96,176.92,29.32278391]
[1747232554411,138.0,176.95,176.94,29.32278391]
[1747232554707,138.0,176.95,176.87,18.64964886]
[1747232555119,5.64971751,177.0,176.94,29.32278391]
[1747232555287,5.64971751,177.0,176.97,29.32278391]
[1747232555481,5.64971751,177.0,176.94,29.32278391]
[1747232555735,5.64971751,177.0,176.92,6.6603]
[1747232555896,5.64971751,177.0,176.97,29.32278391]
[1747232556105,5.64971751,177.0,176.98,29.32278391]
[1747232556482,138.0,177.01,176.98,29.32278391]
[1747232556690,138.0,177.01,177.0,29.32278391]
[1747232557303,5.64843013,177.05,177.0,29.32278391]
[1747232557484,5.64843013,177.05,177.04,29.32278391]
[1747232557680,19.76619415,177.07,176.96,59.82964886]
[1747232557883,167.32278391,177.06,176.96,41.18]
[1747232558133,138.0,177.06,177.01,29.32278391]
[1747232558294,138.0,177.05,177.01,29.32278391]
[1747232558492,138.0,177.05,176.96,41.18]
[1747232558815,138.0,177.05,176.97,18.64964886]
[1747232558981,138.0,177.05,176.96,41.18]
[1747232558982,138.0,177.05,177.01,29.32278391]
[1747232559187,138.0,177.04,177.01,29.32278391]
[1747232559517,138.0,177.04,177.02,29.32278391]
[1747232559718,5.64876009,177.03,177.02,29.32278391]